Workbook

Sheet Intro
B3: KSU-Bull vs AI Breeding Costs
B5: An Excel spreadsheet to evaluate the economic costs and benefits of natural (bull) breeding versus artificial insemination (AI) in beef herds
L8: Version- 11.11.2015
B28: INTRODUCTION
B29: A spreadsheet program to calculate the net present value of purchasing replacment heifers given expectations for calf selling price, weaning weights, cull cow price, and a target rate of return on investment.
B31: INSTRUCTIONS FOR THE USER:
B32: Be sure to "Enable Content" and "Enable Macros" for the spreadsheet to function correctly.
B33: In the Comparison, Bull carrying cost details, and AI cost details tab all blue numbers are inputs and all black numbers are calculated from these inputs (green values are "pulled" from another tab). Several input cells (i.e., blue number) have a red diamond in the upper right hand corner of the cell. By moving your mouse cursor over this diamond, a brief description of the input will be displayed on the screen.
B40: FOR MORE INFORMATION:
B41: Updated by:
B43: Dustin L. Pendell, Ph.D. | H43: Sandy Johnson, Ph.D.
B44: Agricultural Economist | H44: Livestock Specialist
B45: Department of Agricultural Economics | H45: Northwest Research and Extension Center
B46: Kansas State University | H46: Kansas State University
B47: dpendell@k-state.edu | H47: sandyj@ksu.edu
B48: 785-532-3525 | H48: 785-462-6281
B50: ACKNOWLEDGEMENTS:
B51: Originally developed by:
B53: Kevin C. Dhuyvetter, Ph.D. | H53: L. Curt Vogel, DVM
B54: Former Extension Agricultural Economist | H54: Associate Veterinarian
B55: Department of Agricultural Economics | H55: Western Edge Veterinary Center
B56: Kansas State University
B57: Copyright 2016 AgManager.info, K-State Department of Agricultural Economics

Sheet Comparison
B2: Comparison of Bull vs. AI Breeding Costs
F4: 100% bull | H4: AI plus
F5: power | H5: Clean-up bulls
B6: Cost
B7: Bull Costs
B8: Purchase price of bull, $/hd | F8: 5200 | H8: 5200
B9: Weight of bull at salvage, lbs/hd | F9: 1800 | H9: 1800
B10: Salvage sale price, $/lb | F10: 1.1 | H10: =F10 -> 1.1
B11: Salvage value, $/hd | F11: =F10*F9 -> 1980 | H11: =H10*H9 -> 1980
B12: Breeding seasons, years | F12: 4 | H12: =F12 -> 4
B13: Annual bull death loss, % | F13: 0.01 | H13: =F13 -> 0.01
B14: Interest rate, % | F14: 0.07 | H14: =F14 -> 0.07
B15: Annual carrying cost, $/hd | F15: ='Bull carrying cost details'!G32 -> 772.337975 | H15: ='Bull carrying cost details'!G32 -> 772.337975
B16: Annual bull ownership costs, $/hd | F16: =(F8-F11*(1-F13)*1/(1+F14)^F12)*(F14/(1-(1+F14)^-F12)) -> 1093.694052 | H16: =(H8-H11*(1-H13)*1/(1+H14)^H12)*(H14/(1-(1+H14)^-H12)) -> 1093.694052
B17: Total annual bull cost, $/hd | F17: =+F15+F16 -> 1866.032027 | H17: =+H15+H16 -> 1866.032027
B19: Artificial Insemination Costs
B20: Expected AI pregnancy rate, % | F20: n/a | H20: 0.55
B21: Synchonization program costs, $/hd | F21: n/a | H21: ='AI cost details'!G11 -> 20.5
B22: Semen cost, $/hd | F22: n/a | H22: ='AI cost details'!G13 -> 28
B23: Labor and other costs, $/hd | F23: n/a | H23: ='AI cost details'!G19 -> 12.5
B24: Total A.I. program cost, $/hd | F24: n/a | H24: =SUM(H21:H23) -> 61
B26: Annual Bull Cost/Female Exposed
B27: Number of females bred | F27: 100 | H27: =F27 -> 100
B28: Cow-to-bull ratio (cows per bull) | F28: 25 | H28: 25
B29: Number of bulls needed | F29: 4 | H29: 2
B30: Cost per female exposed | F30: =F29*F17/F27 -> 74.6412811 | H30: =H29*H17/H27 -> 37.32064055
B32: Total Breeding Cost per Female Exposed | F32: =F30 -> 74.6412811 | H32: =H30+H24 -> 98.32064055
B33: Final Pregnancy rate, % | F33: 0.92 | H33: 0.92
B34: Total Breeding Cost per Female Bred | F34: =F32/F33 -> 81.13182728 | H34: =H32/H33 -> 106.8702615
B36: Benefit
B37: Added Value of A.I. Sired Calf at Weaning, $/hd | F37: n/a | H37: 50
B38: (due to age, genetics, gender, etc.)
B40: Total Cost per Female Bred | F40: =F34 -> 81.13182728 | H40: =H34-H37*H20 -> 79.37026146
B95: Inputs for formula and intermediate calculations
B96: Single bull = 1 vs. battery of bulls = 0 | F96: 1 | H96: 1
B97: =" (battery implies "&FIXED(1/F12*100,1)&"% of bulls are bought and sold every year)" -> (battery implies 25.0% of bulls are bought and sold every year)
B98: Calculated number of bulls (unrounded) | F98: =F27/F28 -> 4 | H98: =(H27*(1-H20))/H28 -> 1.8
B99: Portion of bull | F99: =F98-INT(F98) -> 0 | H99: =H98-INT(H98) -> 0.8
B100: "Trigger" to round number of bulls up | F100: 0.33 | H100: =F100 -> 0.33
B101: Decimal places to round to | F101: 0 | H101: =F101 -> 0
B103: 100% Bull Power -- Calculations for "battery" of bulls
B104: End of yr
B105: 0 | C105: =IF(B105=F$12,F$11*(1-F$13),0) -> 0 | D105: =F8 -> 5200 | E105: =D106*(1-F$13) -> 4351.05 | F105: 0 | G105: 0 | H105: =IF(B105<F$12,1/F$12,0) -> 0.25 | I105: =1/(1+F$14)^B105 -> 1
B106: =+B105+1 -> 1 | C106: 0 | D106: =IF(B106<=F$12,D105-(D$105-MAX(C$105:C$115)/(1-F$13))/F$12,0) -> 4395 | E106: 3554.1 | F106: =D$105*H106 -> 1300 | G106: =IF(B106<=F$12,F$11*(1-F$13),0) -> 1960.2 | H106: 0.25 | I106: =1/(1+F$14)^B106 -> 0.9345794393
B107: =+B106+1 -> 2 | C107: 0 | D107: 3590 | E107: 2757.15 | F107: 1300 | G107: 1960.2 | H107: 0.25 | I107: 0.8734387283
B108: 3 | C108: 0 | D108: 2785 | E108: 1960.2 | F108: 1300 | G108: 1960.2 | H108: 0.25 | I108: 0.8162978769
B109: 4 | C109: 1960.2 | D109: 1980 | E109: 0 | F109: 0 | G109: 1960.2 | H109: 0 | I109: 0.762895212
B110: =+B109+1 -> 5 | C110: 0 | D110: 0 | E110: 0 | F110: 0 | G110: 0 | H110: 0 | I110: 0.7129861795
B111: 6 | C111: 0 | D111: 0 | E111: 0 | F111: 0 | G111: 0 | H111: 0 | I111: 0.6663422238
B112: 7 | C112: 0 | D112: 0 | E112: 0 | F112: 0 | G112: 0 | H112: 0 | I112: 0.6227497419
B113: 8 | C113: 0 | D113: 0 | E113: 0 | F113: 0 | G113: 0 | H113: 0 | I113: 0.5820091046
B114: 9 | C114: 0 | D114: 0 | E114: 0 | F114: 0 | G114: 0 | H114: 0 | I114: 0.5439337426
B115: 10 | C115: 0 | D115: 0 | E115: =D117*(1-F$13) -> 0 | F115: 0 | G115: 0 | H115: 0 | I115: 0.5083492921
B117: AI + Clean-up Bulls -- Calculations for "battery" of bulls
B118: End of yr
B119: 0 | C119: =IF(B119=H$12,H$11*(1-H$13),0) -> 0 | D119: =H8 -> 5200 | E119: =D120*(1-H$13) -> 4351.05 | F119: 0 | G119: 0 | H119: =IF(B119<H$12,1/H$12,0) -> 0.25 | I119: =1/(1+H$14)^B119 -> 1
B120: =+B119+1 -> 1 | C120: 0 | D120: =IF(B120<=H$12,D119-(D$119-MAX(C$119:C$129)/(1-H$13))/H$12,0) -> 4395 | E120: 3554.1 | F120: =D$119*H120 -> 1300 | G120: =IF(B120<=H$12,H$11*(1-H$13),0) -> 1960.2 | H120: 0.25 | I120: 0.9345794393
B121: 2 | C121: 0 | D121: 3590 | E121: 2757.15 | F121: 1300 | G121: 1960.2 | H121: 0.25 | I121: 0.8734387283
B122: 3 | C122: 0 | D122: 2785 | E122: 1960.2 | F122: 1300 | G122: 1960.2 | H122: 0.25 | I122: 0.8162978769
B123: 4 | C123: 1960.2 | D123: 1980 | E123: 0 | F123: 0 | G123: 1960.2 | H123: 0 | I123: 0.762895212
B124: 5 | C124: 0 | D124: 0 | E124: 0 | F124: 0 | G124: 0 | H124: 0 | I124: 0.7129861795
B125: 6 | C125: 0 | D125: 0 | E125: 0 | F125: 0 | G125: 0 | H125: 0 | I125: 0.6663422238
B126: 7 | C126: 0 | D126: 0 | E126: 0 | F126: 0 | G126: 0 | H126: 0 | I126: 0.6227497419
B127: 8 | C127: 0 | D127: 0 | E127: 0 | F127: 0 | G127: 0 | H127: 0 | I127: 0.5820091046
B128: 9 | C128: 0 | D128: 0 | E128: 0 | F128: 0 | G128: 0 | H128: 0 | I128: 0.5439337426
B129: 10 | C129: 0 | D129: 0 | E129: 0 | F129: 0 | G129: 0 | H129: 0 | I129: 0.5083492921

Sheet Bull carrying cost details
B2: Estimate of Annual Bull Carrying Costs
B4: Feed Costs, $/head
B5: Summer pasture | C5: 10 | D5: acres | E5: 18 | F5: $/ac | G5: =C5*E5 -> 180
B7: Other feed | D7: Days | E7: Lbs/day | F7: $/ton
B8: Crop residue | D8: 60 | E8: 36 | F8: 30 | G8: =D8*E8*F8/2000 -> 32.4
B9: Hay | D9: 120 | E9: 40 | F9: 100 | G9: =D9*E9*F9/2000 -> 240
B10: Grain/concentrate | D10: 0 | E10: 0 | F10: 0 | G10: =D10*E10*F10/2000 -> 0
B11: Protein | D11: 30 | E11: 1 | F11: 350 | G11: =D11*E11*F11/2000 -> 5.25
B12: Salt and mineral | D12: 365 | E12: 0.2 | F12: 550 | G12: =D12*E12*F12/2000 -> 20.075
B13: Sub-total | G13: =SUM(G8:G12) -> 297.725
B14: Total feed | G14: =G5+G13 -> 477.725
B16: Non-feed Operating Costs, $/head
B17: Labor | C17: 5 | D17: hrs/yr | E17: 15 | F17: $/hr | G17: =C17*E17 -> 75
B18: Vet, drugs, and supplies | G18: 12
B19: Breeding soundness exam, Trichomanisis test | G19: 50
B20: Utilities, fuel and oil | G20: 40
B21: Facility and equipment repairs | G21: 35
B22: Miscellaneous | G22: 10
B23: Interest on feed and non-feed operating costs | G23: =SUM(G14:G22)/2*Comparison!F14 -> 24.490375
B24: Total non-feed variable costs | G24: =SUM(G17:G23) -> 246.490375
B26: Facility and Equipment Costs, $/head (see assumptions below)
B27: Depreciation | G27: =D38*(1-D40)/D39+F38*(1-F40)/F39 -> 32.186
B28: Interest | G28: =D38*D41+F38*F41 -> 15.9366
B29: Insurance and taxes | G29: =D38*D42+F38*F42 -> 1.273175
B30: Total facility and equipment costs | G30: =SUM(G27:G28) -> 48.1226
B32: Total Annual Cost, $/head | G32: =G14+G24+G30 -> 772.337975
B36: Facilities and Equipment Assumptions
D37: Facilities | F37: Equipment
B38: Investment, $/hd | D38: 40.61 | F38: 225
B39: Useful life, years | D39: 10 | F39: 8
B40: Salvage value, % | D40: 0 | F40: 0
B41: Interest rate, % | D41: 0.06 | F41: 0.06
B42: Insurance and tax rate, % | D42: 0.0175 | F42: 0.0025

Sheet AI cost details
B2: Estimate of Artificial Insemination Costs
D4: Units | E4: $/unit
B5: Synchronization products
B6: CIDR | D6: 1 | E6: 11.5 | G6: =D6*E6 -> 11.5
B7: GnRH | D7: 2 | E7: 3 | G7: =D7*E7 -> 6
B8: Prostaglandin | D8: 1 | E8: 3 | G8: =D8*E8 -> 3
B9: Other | D9: 0 | E9: 0 | G9: =D9*E9 -> 0
B10: Other | D10: 0 | E10: 0 | G10: =D10*E10 -> 0
B11: Sub-total | G11: =SUM(G6:G10) -> 20.5
B13: Semen | D13: 1 | E13: 28 | G13: =D13*E13 -> 28
B15: AI Technician Fee | D15: 1 | E15: 8 | G15: =D15*E15 -> 8
B16: Chute Charge | D16: 3 | E16: 1.5 | G16: =D16*E16 -> 4.5
B17: Other | D17: 0 | E17: 0 | G17: =D17*E17 -> 0
B18: Other | D18: 0 | E18: 0 | G18: =D18*E18 -> 0
B19: Sub-total | G19: =SUM(G15:G18) -> 12.5
B21: Total Cost, $/head | G21: =G11+G13+G19 -> 61

Sheet Notes
B2: Notes -- this tab left blank intentionally for notes
